[Event "*** Titled Tuesday Blitz"]
[Site "Chess.com"]
[Date "2020.11.10"]
[Round "6"]
[White "Pliukha_Mikhail"]
[Black "Harsha_Bharathakoti"]
[Result "1/2-1/2"]
[WhiteElo "2486"]
[BlackElo "2785"]
[TimeControl "180+1"]
[EndTime "11:13:18 PST"]
[Termination "Game drawn by repetition"]

1. e4 {[%clk 0:02:43.1]} 1... d6 {[%clk 0:03:00.9]} 2. d4 {[%clk 0:02:43.3]}
2... Nf6 {[%clk 0:03:01.2]} 3. Nc3 {[%clk 0:02:43.9]} 3... g6 {[%clk 0:03:01.8]}
4. Bg5 {[%clk 0:02:44.4]} 4... Nbd7 {[%clk 0:03:01.6]} 5. e5 {[%clk 0:02:42.9]}
5... dxe5 {[%clk 0:03:01.1]} 6. dxe5 {[%clk 0:02:43.8]} 6... Nxe5 {[%clk
0:03:01]} 7. Qxd8+ {[%clk 0:02:44.3]} 7... Kxd8 {[%clk 0:03:01.9]} 8. O-O-O+
{[%clk 0:02:44.5]} 8... Bd7 {[%clk 0:02:52.7]} 9. f4 {[%clk 0:02:38.3]} 9...
Neg4 {[%clk 0:02:38.1]} 10. Nh3 {[%clk 0:02:36.1]} 10... Ne3 {[%clk 0:02:36.3]}
11. Rd3 {[%clk 0:02:34.9]} 11... Nxf1 {[%clk 0:02:35.2]} 12. Rxf1 {[%clk
0:02:35.8]} 12... Ke8 {[%clk 0:02:32.8]} 13. Bxf6 {[%clk 0:02:31]} 13... exf6
{[%clk 0:02:33.7]} 14. Nd5 {[%clk 0:02:30.1]} 14... Bg7 {[%clk 0:01:53.3]} 15.
Nxc7+ {[%clk 0:02:29.8]} 15... Ke7 {[%clk 0:01:54.2]} 16. Re1+ {[%clk
0:02:23.5]} 16... Be6 {[%clk 0:01:54.6]} 17. f5 {[%clk 0:01:54]} 17... gxf5
{[%clk 0:01:54.5]} 18. Nf4 {[%clk 0:01:50.2]} 18... Bh6 {[%clk 0:01:55.3]} 19.
Nxe6 {[%clk 0:01:47.7]} 19... fxe6 {[%clk 0:01:54.9]} 20. Rxe6+ {[%clk
0:01:47.6]} 20... Kf8 {[%clk 0:01:52.4]} 21. g3 {[%clk 0:01:40.6]} 21... Bxf4+
{[%clk 0:01:51]} 22. gxf4 {[%clk 0:01:41.5]} 22... Kf7 {[%clk 0:01:48.2]} 23.
Rdd6 {[%clk 0:01:40.5]} 23... Rhg8 {[%clk 0:01:42]} 24. Rxf6+ {[%clk 0:01:40.8]}
24... Ke7 {[%clk 0:01:42.9]} 25. Rde6+ {[%clk 0:01:37.6]} 25... Kd7 {[%clk
0:01:43.1]} 26. Re2 {[%clk 0:01:31.7]} 26... Raf8 {[%clk 0:01:40.5]} 27. Rxf8
{[%clk 0:01:31.3]} 27... Rxf8 {[%clk 0:01:41.4]} 28. Re5 {[%clk 0:01:31.3]}
28... Rg8 {[%clk 0:01:39.9]} 29. Rxf5 {[%clk 0:01:29.7]} 29... Rg1+ {[%clk
0:01:39.9]} 30. Kd2 {[%clk 0:01:30.3]} 30... Rg2+ {[%clk 0:01:40.8]} 31. Kc3
{[%clk 0:01:30.8]} 31... Rxh2 {[%clk 0:01:41.7]} 32. Rf7+ {[%clk 0:01:31.2]}
32... Kc6 {[%clk 0:01:41.9]} 33. f5 {[%clk 0:01:31.9]} 33... h5 {[%clk
0:01:38.1]} 34. f6 {[%clk 0:01:32.2]} 34... Rf2 {[%clk 0:01:38.6]} 35. Rf8
{[%clk 0:01:31.5]} 35... h4 {[%clk 0:01:37.8]} 36. f7 {[%clk 0:01:31.2]} 36...
Kb6 {[%clk 0:01:38]} 37. Rh8 {[%clk 0:01:14.4]} 37... Rxf7 {[%clk 0:01:37.9]}
38. Rxh4 {[%clk 0:01:15]} 38... Rf3+ {[%clk 0:01:38.7]} 39. Kb4 {[%clk
0:01:14.4]} 39... Rf2 {[%clk 0:01:38.2]} 40. Kb3 {[%clk 0:01:14.7]} 40... Rg2
{[%clk 0:01:36.3]} 41. Rh7 {[%clk 0:01:13.8]} 41... Kc6 {[%clk 0:01:35.6]} 42.
c4 {[%clk 0:01:12.7]} 42... a6 {[%clk 0:01:33.3]} 43. Kc3 {[%clk 0:01:11.2]}
43... Rf2 {[%clk 0:01:31.1]} 44. a3 {[%clk 0:01:10.8]} 44... b6 {[%clk
0:01:26.8]} 45. Rh6+ {[%clk 0:01:09.7]} 45... Kc7 {[%clk 0:01:26.4]} 46. b3
{[%clk 0:01:09.7]} 46... Rg2 {[%clk 0:01:25.6]} 47. Kb4 {[%clk 0:01:09.2]} 47...
Kb7 {[%clk 0:01:25.5]} 48. Rh4 {[%clk 0:01:08.9]} 48... Rf2 {[%clk 0:01:23.9]}
49. c5 {[%clk 0:01:06.2]} 49... bxc5+ {[%clk 0:01:23.7]} 50. Kxc5 {[%clk
0:01:07.1]} 50... Rf5+ {[%clk 0:01:24.2]} 51. Kb4 {[%clk 0:01:07.2]} 51... Kb6
{[%clk 0:01:23.8]} 52. Rh6+ {[%clk 0:01:07.2]} 52... Kb7 {[%clk 0:01:24.5]} 53.
Ka4 {[%clk 0:01:07.9]} 53... Rf4+ {[%clk 0:01:24.5]} 54. b4 {[%clk 0:01:08.4]}
54... Rf5 {[%clk 0:01:25.4]} 55. Re6 {[%clk 0:01:05.8]} 55... Rg5 {[%clk
0:01:25.3]} 56. Rf6 {[%clk 0:01:05.6]} 56... Rh5 {[%clk 0:01:25.5]} 57. Rf4
{[%clk 0:01:05.8]} 57... Rg5 {[%clk 0:01:25.9]} 58. Rc4 {[%clk 0:01:06]} 58...
Rf5 {[%clk 0:01:26.3]} 59. Rc5 {[%clk 0:01:05.7]} 59... Rf3 {[%clk 0:01:25.7]}
60. Rh5 {[%clk 0:01:03.5]} 60... Rg3 {[%clk 0:01:25.8]} 61. Rh7+ {[%clk
0:01:01.4]} 61... Kb6 {[%clk 0:01:26]} 62. Rh6+ {[%clk 0:01:02]} 62... Kb7
{[%clk 0:01:26.7]} 63. Rh1 {[%clk 0:00:53.8]} 63... Rf3 {[%clk 0:01:26.7]} 64.
Ra1 {[%clk 0:00:54.3]} 64... Rf5 {[%clk 0:01:27]} 65. Re1 {[%clk 0:00:51.6]}
65... Rf3 {[%clk 0:01:27.1]} 66. Re5 {[%clk 0:00:46.9]} 66... Kb6 {[%clk
0:01:26.8]} 67. Re6+ {[%clk 0:00:42]} 67... Kb7 {[%clk 0:01:26.5]} 68. Rh6
{[%clk 0:00:42]} 68... Rg3 {[%clk 0:01:26.6]} 69. Rf6 {[%clk 0:00:41.1]} 69...
Rh3 {[%clk 0:01:26.7]} 70. Rg6 {[%clk 0:00:40.6]} 70... Rf3 {[%clk 0:01:27]} 71.
Rg4 {[%clk 0:00:36.3]} 71... Re3 {[%clk 0:01:27.4]} 72. b5 {[%clk 0:00:36.5]}
72... axb5+ {[%clk 0:01:27.3]} 73. Kb4 {[%clk 0:00:36.8]} 73... Re5 {[%clk
0:01:27.5]} 74. Ka5 {[%clk 0:00:34.5]} 74... Rf5 {[%clk 0:01:27.1]} 75. Rg6
{[%clk 0:00:34.4]} 75... Ka7 {[%clk 0:01:25.5]} 76. Rg7+ {[%clk 0:00:34.1]}
76... Kb8 {[%clk 0:01:25.3]} 77. Kb6 {[%clk 0:00:34.8]} 77... Kc8 {[%clk
0:01:25.9]} 78. Rc7+ {[%clk 0:00:34.5]} 78... Kb8 {[%clk 0:01:24.1]} 79. Rc3
{[%clk 0:00:33.6]} 79... Rg5 {[%clk 0:01:23.6]} 80. Rh3 {[%clk 0:00:33.1]} 80...
Kc8 {[%clk 0:01:22.2]} 81. Kc6 {[%clk 0:00:33.5]} 81... Kb8 {[%clk 0:01:21.7]}
82. Rh7 {[%clk 0:00:31.2]} 82... Rg6+ {[%clk 0:01:18.1]} 83. Kxb5 {[%clk
0:00:31]} 83... Rg5+ {[%clk 0:01:19]} 84. Kb4 {[%clk 0:00:31.3]} 84... Rg4+
{[%clk 0:01:19.3]} 85. Kc5 {[%clk 0:00:31.5]} 85... Rg5+ {[%clk 0:01:19.8]} 86.
Kd4 {[%clk 0:00:31.8]} 86... Rg6 {[%clk 0:01:20.7]} 87. Rh3 {[%clk 0:00:16.1]}
87... Rg4+ {[%clk 0:01:20.2]} 88. Kc5 {[%clk 0:00:16.3]} 88... Rg5+ {[%clk
0:01:21.1]} 89. Kb6 {[%clk 0:00:16.3]} 89... Rg6+ {[%clk 0:01:21.4]} 90. Kb5
{[%clk 0:00:16.3]} 90... Rg5+ {[%clk 0:01:22.3]} 91. Kb4 {[%clk 0:00:17]} 91...
Rg4+ {[%clk 0:01:22.6]} 92. Kb3 {[%clk 0:00:17.6]} 92... Rg5 {[%clk 0:01:23.5]}
93. a4 {[%clk 0:00:17.9]} 93... Rg6 {[%clk 0:01:23.1]} 94. Rh7 {[%clk
0:00:18.2]} 94... Rg3+ {[%clk 0:01:22.8]} 95. Kc2 {[%clk 0:00:18.8]} 95... Rg4
{[%clk 0:01:23.7]} 96. a5 {[%clk 0:00:18.9]} 96... Ra4 {[%clk 0:01:23.7]} 97.
Rh5 {[%clk 0:00:19.1]} 97... Kb7 {[%clk 0:01:23.8]} 98. Kb3 {[%clk 0:00:19.9]}
98... Ra1 {[%clk 0:01:24.5]} 99. Kb4 {[%clk 0:00:20.7]} 99... Rb1+ {[%clk
0:01:24.8]} 100. Kc4 {[%clk 0:00:21.4]} 100... Rc1+ {[%clk 0:01:25.7]} 101. Kb3
{[%clk 0:00:22]} 101... Rb1+ {[%clk 0:01:26.1]} 102. Ka2 {[%clk 0:00:22.4]}
102... Rg1 {[%clk 0:01:25.6]} 103. Rh6 {[%clk 0:00:22.7]} 103... Rg5 {[%clk
0:01:24.6]} 104. a6+ {[%clk 0:00:21.3]} 104... Ka7 {[%clk 0:01:25.2]} 105. Kb3
{[%clk 0:00:22.1]} 105... Ra5 {[%clk 0:01:26]} 106. Kb4 {[%clk 0:00:22.8]}
106... Rxa6 {[%clk 0:01:26.6]} 107. Rh7+ {[%clk 0:00:23.5]} 107... Kb8 {[%clk
0:01:26.7]} 108. Kb5 {[%clk 0:00:23.8]} 108... Rf6 {[%clk 0:01:27.1]} 109. Kc5
{[%clk 0:00:24.1]} 109... Rg6 {[%clk 0:01:27]} 110. Kd5 {[%clk 0:00:24.8]}
110... Ra6 {[%clk 0:01:27.5]} 111. Kc5 {[%clk 0:00:25.3]} 111... Rg6 {[%clk
0:01:27.6]} 112. Rf7 {[%clk 0:00:25.4]} 112... Rg5+ {[%clk 0:01:27.8]} 113. Kb6
{[%clk 0:00:25.5]} 113... Rg6+ {[%clk 0:01:28.7]} 114. Kb5 {[%clk 0:00:26]}
114... Kc8 {[%clk 0:01:28.8]} 115. Kc5 {[%clk 0:00:26]} 115... Kb8 {[%clk
0:01:28.5]} 116. Kd5 {[%clk 0:00:26.3]} 116... Kc8 {[%clk 0:01:28.9]} 117. Ke5
{[%clk 0:00:26.7]} 117... Kd8 {[%clk 0:01:29.5]} 118. Ra7 {[%clk 0:00:26.9]}
118... Rb6 {[%clk 0:01:29.8]} 119. Kd5 {[%clk 0:00:27.1]} 119... Rh6 {[%clk
0:01:30.4]} 120. Ke5 {[%clk 0:00:27.4]} 120... Kc8 {[%clk 0:01:30.6]} 121. Rg7
{[%clk 0:00:27]} 121... Rh5+ {[%clk 0:01:31]} 122. Kd6 {[%clk 0:00:27.3]} 122...
Rh6+ {[%clk 0:01:31.9]} 123. Kd5 {[%clk 0:00:27.6]} 123... Kb8 {[%clk
0:01:31.8]} 124. Rf7 {[%clk 0:00:27.4]} 124... Rg6 {[%clk 0:01:32]} 125. Kc5
{[%clk 0:00:27.8]} 125... Kc8 {[%clk 0:01:32.6]} 126. Rh7 {[%clk 0:00:26.1]}
126... Kd8 {[%clk 0:01:32.6]} 127. Kd5 {[%clk 0:00:26.6]} 127... Ke8 {[%clk
0:01:33.2]} 128. Ke5 {[%clk 0:00:27.1]} 128... Ra6 {[%clk 0:01:30.3]} 129. Rb7
{[%clk 0:00:26.2]} 129... Rc6 {[%clk 0:01:30.4]} 130. Kd5 {[%clk 0:00:26.4]}
130... Rh6 {[%clk 0:01:30.9]} 131. Rb1 {[%clk 0:00:26.8]} 131... Rg6 {[%clk
0:01:31.6]} 132. Rh1 {[%clk 0:00:26.2]} 132... Kf7 {[%clk 0:01:31.8]} 133. Rf1+
{[%clk 0:00:26.2]} 133... Kg7 {[%clk 0:01:31.1]} 134. Ke5 {[%clk 0:00:25.7]}
134... Rg5+ {[%clk 0:01:31.8]} 135. Kf4 {[%clk 0:00:26.2]} 135... Rg6 {[%clk
0:01:32.7]} 136. Ra1 {[%clk 0:00:25.9]} 136... Rf6+ {[%clk 0:01:33.2]} 137. Ke5
{[%clk 0:00:26.1]} 137... Rf7 {[%clk 0:01:33.2]} 138. Ra6 {[%clk 0:00:24.4]}
138... Re7+ {[%clk 0:01:32.5]} 139. Kf5 {[%clk 0:00:24.8]} 139... Re1 {[%clk
0:01:33.4]} 140. Ra7+ {[%clk 0:00:24.5]} 140... Kf8 {[%clk 0:01:34.1]} 141. Rh7
{[%clk 0:00:23]} 141... Rf1+ {[%clk 0:01:34.1]} 142. Ke6 {[%clk 0:00:23.3]}
142... Re1+ {[%clk 0:01:35]} 143. Kf6 {[%clk 0:00:23.8]} 143... Rf1+ {[%clk
0:01:35.9]} 144. Kg6 {[%clk 0:00:23.8]} 144... Re1 {[%clk 0:01:36.8]} 145. Ra7
{[%clk 0:00:23.7]} 145... Rg1+ {[%clk 0:01:36.6]} 146. Kf6 {[%clk 0:00:24.2]}
146... Rf1+ {[%clk 0:01:37.5]} 147. Ke6 {[%clk 0:00:24.7]} 147... Re1+ {[%clk
0:01:38.4]} 148. Kf6 {[%clk 0:00:25.1]} 148... Rf1+ {[%clk 0:01:38.9]} 149. Kg6
{[%clk 0:00:25.8]} 149... Rg1+ {[%clk 0:01:39.5]} 150. Kf6 {[%clk 0:00:26.5]}
150... Rf1+ {[%clk 0:01:40.4]} 1/2-1/2

[Event "*** Titled Tuesday Blitz"]
[Site "Chess.com"]
[Date "2020.11.10"]
[Round "6"]
[White "ChessWarrior7197"]
[Black "Zhuu96"]
[Result "1-0"]
[WhiteElo "3017"]
[BlackElo "2895"]
[TimeControl "180+1"]
[EndTime "11:14:39 PST"]
[Termination "ChessWarrior7197 won by checkmate"]

1. e4 {[%clk 0:03:00.9]} 1... e5 {[%clk 0:02:57.9]} 2. Nf3 {[%clk 0:03:00]} 2...
Nc6 {[%clk 0:02:57.9]} 3. Nc3 {[%clk 0:02:59.4]} 3... Nf6 {[%clk 0:02:57.1]} 4.
Bb5 {[%clk 0:02:59.6]} 4... Nd4 {[%clk 0:02:55.3]} 5. O-O {[%clk 0:03:00.1]}
5... Nxb5 {[%clk 0:02:49.2]} 6. Nxb5 {[%clk 0:03:01]} 6... c6 {[%clk 0:02:46.1]}
7. Nc3 {[%clk 0:03:00.3]} 7... d6 {[%clk 0:02:45]} 8. d4 {[%clk 0:02:59.8]} 8...
Qc7 {[%clk 0:02:44.5]} 9. Bg5 {[%clk 0:02:57.3]} 9... Be7 {[%clk 0:02:44]} 10.
h3 {[%clk 0:02:55.3]} 10... O-O {[%clk 0:02:42.8]} 11. a4 {[%clk 0:02:55.8]}
11... h6 {[%clk 0:02:39.6]} 12. Bh4 {[%clk 0:02:53.1]} 12... Nh5 {[%clk
0:02:31.2]} 13. Nxe5 {[%clk 0:02:09.1]} 13... Bxh4 {[%clk 0:02:22.7]} 14. Qxh5
{[%clk 0:02:08.8]} 14... dxe5 {[%clk 0:02:21.5]} 15. Qxh4 {[%clk 0:02:09]} 15...
exd4 {[%clk 0:02:21.9]} 16. Ne2 {[%clk 0:02:09.6]} 16... c5 {[%clk 0:02:18.4]}
17. f4 {[%clk 0:02:00.2]} 17... Be6 {[%clk 0:02:13.4]} 18. Rf3 {[%clk
0:01:55.7]} 18... f5 {[%clk 0:02:09.7]} 19. e5 {[%clk 0:01:50]} 19... Qd8 {[%clk
0:02:03.9]} 20. Qg3 {[%clk 0:01:47]} 20... Bd5 {[%clk 0:01:55.6]} 21. Rd3 {[%clk
0:01:44.2]} 21... Be4 {[%clk 0:01:53.5]} 22. Rd2 {[%clk 0:01:44.3]} 22... Qb6
{[%clk 0:01:48.9]} 23. b3 {[%clk 0:01:31.7]} 23... Kh7 {[%clk 0:01:36.8]} 24.
Kh2 {[%clk 0:01:30.3]} 24... Rae8 {[%clk 0:01:35]} 25. a5 {[%clk 0:01:23.5]}
25... Qc6 {[%clk 0:01:34.6]} 26. Nc1 {[%clk 0:01:17.8]} 26... Re6 {[%clk
0:01:28.9]} 27. Qe1 {[%clk 0:01:16.4]} 27... g5 {[%clk 0:01:26.7]} 28. Nd3
{[%clk 0:01:15.5]} 28... gxf4 {[%clk 0:01:26.1]} 29. Nxf4 {[%clk 0:01:11.8]}
29... Rxe5 {[%clk 0:01:25.7]} 30. b4 {[%clk 0:01:07.5]} 30... Qd6 {[%clk
0:01:19.7]} 31. Qf2 {[%clk 0:01:05.8]} 31... Qc7 {[%clk 0:01:01.7]} 32. Kg1
{[%clk 0:00:54.4]} 32... cxb4 {[%clk 0:00:57.3]} 33. Qxd4 {[%clk 0:00:51.6]}
33... Rf7 {[%clk 0:00:52.9]} 34. Qxb4 {[%clk 0:00:39.9]} 34... Qc5+ {[%clk
0:00:52.6]} 35. Qxc5 {[%clk 0:00:30.5]} 35... Rxc5 {[%clk 0:00:53.5]} 36. Ra2
{[%clk 0:00:24.2]} 36... Re7 {[%clk 0:00:53.2]} 37. Kf2 {[%clk 0:00:23.7]} 37...
Bc6 {[%clk 0:00:53.1]} 38. g3 {[%clk 0:00:19.7]} 38... Rc3 {[%clk 0:00:52.4]}
39. Rd3 {[%clk 0:00:19.2]} 39... Rc4 {[%clk 0:00:51.2]} 40. c3 {[%clk
0:00:18.5]} 40... Be4 {[%clk 0:00:49.7]} 41. Re3 {[%clk 0:00:16.3]} 41... Rec7
{[%clk 0:00:49.8]} 42. Rd2 {[%clk 0:00:14.8]} 42... Rxc3 {[%clk 0:00:47.7]} 43.
Rxc3 {[%clk 0:00:15.7]} 43... Rxc3 {[%clk 0:00:47.8]} 44. Rd7+ {[%clk
0:00:16.6]} 44... Kg8 {[%clk 0:00:47.9]} 45. Nh5 {[%clk 0:00:15.3]} 45... Kf8
{[%clk 0:00:44.8]} 46. a6 {[%clk 0:00:14.7]} 46... bxa6 {[%clk 0:00:43.3]} 47.
Rxa7 {[%clk 0:00:15.6]} 47... Rf3+ {[%clk 0:00:42.7]} 48. Ke2 {[%clk 0:00:15.7]}
48... Ra3 {[%clk 0:00:43]} 49. Kf2 {[%clk 0:00:16.1]} 49... a5 {[%clk
0:00:42.6]} 50. Nf6 {[%clk 0:00:16.5]} 50... Rf3+ {[%clk 0:00:42.3]} 51. Kg2
{[%clk 0:00:15.2]} 51... Ra3+ {[%clk 0:00:27.5]} 52. Kf2 {[%clk 0:00:15.5]}
52... a4 {[%clk 0:00:28]} 53. g4 {[%clk 0:00:15.9]} 53... Rxh3 {[%clk
0:00:20.7]} 54. Rxa4 {[%clk 0:00:14.9]} 54... Bc2 {[%clk 0:00:18.4]} 55. Rc4
{[%clk 0:00:10.7]} 55... fxg4 {[%clk 0:00:17.7]} 56. Nxg4 {[%clk 0:00:11.6]}
56... Bg6 {[%clk 0:00:16.2]} 57. Ne5 {[%clk 0:00:11]} 57... Be8 {[%clk
0:00:15.1]} 58. Rc7 {[%clk 0:00:10.7]} 58... Rh5 {[%clk 0:00:14.6]} 59. Nf3
{[%clk 0:00:08.6]} 59... Rf5 {[%clk 0:00:14.8]} 60. Ke3 {[%clk 0:00:09.2]} 60...
Rf7 {[%clk 0:00:15]} 61. Rc8 {[%clk 0:00:09.1]} 61... Re7+ {[%clk 0:00:14.8]}
62. Kf4 {[%clk 0:00:09.4]} 62... Kg7 {[%clk 0:00:15.4]} 63. Ne5 {[%clk
0:00:09.4]} 63... Bf7 {[%clk 0:00:15.1]} 64. Rc3 {[%clk 0:00:08.7]} 64... Be6
{[%clk 0:00:15.1]} 65. Rg3+ {[%clk 0:00:08.9]} 65... Kh7 {[%clk 0:00:15.4]} 66.
Rg6 {[%clk 0:00:06.6]} 66... Bc8 {[%clk 0:00:13.5]} 67. Rc6 {[%clk 0:00:06.5]}
67... Be6 {[%clk 0:00:13.8]} 68. Rd6 {[%clk 0:00:06]} 68... Kg7 {[%clk 0:00:14]}
69. Nf3 {[%clk 0:00:05.6]} 69... Kf7 {[%clk 0:00:12.8]} 70. Ne5+ {[%clk
0:00:05.6]} 70... Kg7 {[%clk 0:00:12.7]} 71. Rd3 {[%clk 0:00:05]} 71... Kh7
{[%clk 0:00:12.1]} 72. Rg3 {[%clk 0:00:05.9]} 72... Rg7 {[%clk 0:00:12.3]} 73.
Re3 {[%clk 0:00:05.7]} 73... Rg5 {[%clk 0:00:11.8]} 74. Rc3 {[%clk 0:00:05.6]}
74... Kg7 {[%clk 0:00:12]} 75. Ke4 {[%clk 0:00:06.5]} 75... Kf6 {[%clk
0:00:12.1]} 76. Rf3+ {[%clk 0:00:06.5]} 76... Ke7 {[%clk 0:00:12.4]} 77. Ra3
{[%clk 0:00:06.2]} 77... Kd6 {[%clk 0:00:12.5]} 78. Ra6+ {[%clk 0:00:06]} 78...
Ke7 {[%clk 0:00:12.9]} 79. Nc6+ {[%clk 0:00:06.5]} 79... Kf6 {[%clk 0:00:12.9]}
80. Nd4 {[%clk 0:00:06.9]} 80... Rg4+ {[%clk 0:00:13]} 81. Ke3 {[%clk
0:00:07.1]} 81... Ke5 {[%clk 0:00:09.6]} 82. Rxe6+ {[%clk 0:00:03.2]} 82... Kd5
{[%clk 0:00:09.9]} 83. Re8 {[%clk 0:00:04.1]} 83... Rg3+ {[%clk 0:00:09.7]} 84.
Kf4 {[%clk 0:00:04.2]} 84... Rg6 {[%clk 0:00:09.8]} 85. Nf5 {[%clk 0:00:03.8]}
85... Re6 {[%clk 0:00:09.5]} 86. Rd8+ {[%clk 0:00:01.9]} 86... Kc5 {[%clk
0:00:09.7]} 87. Rd1 {[%clk 0:00:02.8]} 87... Kb6 {[%clk 0:00:08.6]} 88. Nd4
{[%clk 0:00:02.5]} 88... Rf6+ {[%clk 0:00:08.1]} 89. Ke5 {[%clk 0:00:03.4]}
89... Rg6 {[%clk 0:00:08.4]} 90. Rb1+ {[%clk 0:00:03.9]} 90... Kc7 {[%clk
0:00:07.9]} 91. Ne6+ {[%clk 0:00:03.6]} 91... Kc6 {[%clk 0:00:07.9]} 92. Rc1+
{[%clk 0:00:04.1]} 92... Kb6 {[%clk 0:00:08.4]} 93. Kd5 {[%clk 0:00:05]} 93...
Rf6 {[%clk 0:00:08.1]} 94. Rb1+ {[%clk 0:00:05.3]} 94... Ka7 {[%clk 0:00:08.1]}
95. Kd6 {[%clk 0:00:05.2]} 95... Rf2 {[%clk 0:00:08.2]} 96. Kc6 {[%clk
0:00:04.8]} 96... Rc2+ {[%clk 0:00:07.1]} 97. Nc5 {[%clk 0:00:05.2]} 97... h5
{[%clk 0:00:07.2]} 98. Rb7+ {[%clk 0:00:05.2]} 98... Ka8 {[%clk 0:00:07.5]} 99.
Rh7 {[%clk 0:00:06.1]} 99... Rc1 {[%clk 0:00:07.3]} 100. Rxh5 {[%clk 0:00:05.6]}
100... Ka7 {[%clk 0:00:07]} 101. Rh7+ {[%clk 0:00:05.8]} 101... Kb8 {[%clk
0:00:07.4]} 102. Rb7+ {[%clk 0:00:05.8]} 102... Kc8 {[%clk 0:00:07.6]} 103. Rb2
{[%clk 0:00:05]} 103... Kd8 {[%clk 0:00:07.5]} 104. Re2 {[%clk 0:00:05.2]}
104... Rc3 {[%clk 0:00:06.7]} 105. Kd6 {[%clk 0:00:05.6]} 105... Rc1 {[%clk
0:00:06.6]} 106. Rd2 {[%clk 0:00:04.8]} 106... Ke8 {[%clk 0:00:06.3]} 107. Ne6
{[%clk 0:00:04.1]} 107... Re1 {[%clk 0:00:05.1]} 108. Rf2 {[%clk 0:00:03.3]}
108... Rd1+ {[%clk 0:00:05.3]} 109. Ke5 {[%clk 0:00:04.1]} 109... Re1+ {[%clk
0:00:05.7]} 110. Kf6 {[%clk 0:00:05]} 110... Kd7 {[%clk 0:00:06]} 111. Rd2+
{[%clk 0:00:05.2]} 111... Kc6 {[%clk 0:00:06.6]} 112. Ke7 {[%clk 0:00:05]}
112... Re3 {[%clk 0:00:06.2]} 113. Rc2+ {[%clk 0:00:05.2]} 113... Kd5 {[%clk
0:00:05.9]} 114. Rd2+ {[%clk 0:00:04.6]} 114... Kc4 {[%clk 0:00:05.9]} 115. Rh2
{[%clk 0:00:03.1]} 115... Kc3 {[%clk 0:00:06.2]} 116. Rh5 {[%clk 0:00:03]}
116... Kd3 {[%clk 0:00:06.3]} 117. Kd6 {[%clk 0:00:03.9]} 117... Kc3 {[%clk
0:00:06.6]} 118. Kd5 {[%clk 0:00:03.9]} 118... Re1 {[%clk 0:00:06.8]} 119. Nd4
{[%clk 0:00:03.8]} 119... Rd1 {[%clk 0:00:06.4]} 120. Rh3+ {[%clk 0:00:04.3]}
120... Kd2 {[%clk 0:00:06.8]} 121. Rh4 {[%clk 0:00:05.2]} 121... Rf1 {[%clk
0:00:06.4]} 122. Kc4 {[%clk 0:00:04.5]} 122... Ke3 {[%clk 0:00:05.7]} 123. Nc2+
{[%clk 0:00:04.2]} 123... Kf2 {[%clk 0:00:05.8]} 124. Kd3 {[%clk 0:00:03.7]}
124... Kg3 {[%clk 0:00:05.6]} 125. Rb4 {[%clk 0:00:03.2]} 125... Rf4 {[%clk
0:00:05.3]} 126. Nd4 {[%clk 0:00:02.6]} 126... Kg4 {[%clk 0:00:05]} 127. Rb8
{[%clk 0:00:03.1]} 127... Kh5 {[%clk 0:00:04.9]} 128. Rg8 {[%clk 0:00:04]}
128... Kh6 {[%clk 0:00:04.3]} 129. Ke3 {[%clk 0:00:03.9]} 129... Kh7 {[%clk
0:00:04.6]} 130. Rg1 {[%clk 0:00:04]} 130... Rf6 {[%clk 0:00:04.7]} 131. Ke4
{[%clk 0:00:04.9]} 131... Rg6 {[%clk 0:00:05.1]} 132. Rh1+ {[%clk 0:00:05.2]}
132... Kg7 {[%clk 0:00:05.4]} 133. Ke5 {[%clk 0:00:05.1]} 133... Kf7 {[%clk
0:00:05.1]} 134. Nf5 {[%clk 0:00:05]} 134... Ke8 {[%clk 0:00:05]} 135. Rh7
{[%clk 0:00:04.5]} 135... Kd8 {[%clk 0:00:05.4]} 136. Nd6 {[%clk 0:00:04.2]}
136... Rg1 {[%clk 0:00:05.6]} 137. Ke6 {[%clk 0:00:04.2]} 137... Re1+ {[%clk
0:00:05.8]} 138. Kd5 {[%clk 0:00:05.1]} 138... Rd1+ {[%clk 0:00:06.2]} 139. Ke5
{[%clk 0:00:05.9]} 139... Re1+ {[%clk 0:00:06.6]} 140. Ne4 {[%clk 0:00:06.8]}
140... Re2 {[%clk 0:00:06.3]} 141. Kd6 {[%clk 0:00:06.7]} 141... Re1 {[%clk
0:00:06.1]} 142. Rh8# {[%clk 0:00:06.8]} 1-0

[Event "*** Titled Tuesday Blitz"]
[Site "Chess.com"]
[Date "2020.11.10"]
[Round "7"]
[White "Radzio1987"]
[Black "alejanchess73"]
[Result "0-1"]
[WhiteElo "2754"]
[BlackElo "2477"]
[TimeControl "180+1"]
[EndTime "11:17:58 PST"]
[Termination "alejanchess73 won by resignation"]

1. c4 {[%clk 0:03:00.9]} 1... Nf6 {[%clk 0:02:57.3]} 2. Nf3 {[%clk 0:02:59.4]}
2... g6 {[%clk 0:02:56.9]} 3. Nc3 {[%clk 0:02:58.9]} 3... d6 {[%clk 0:02:56.4]}
4. g3 {[%clk 0:02:58.4]} 4... Bg7 {[%clk 0:02:56.5]} 5. d4 {[%clk 0:02:58.9]}
5... O-O {[%clk 0:02:57.2]} 6. Bg2 {[%clk 0:02:59.4]} 6... Nbd7 {[%clk
0:02:57.1]} 7. O-O {[%clk 0:02:59.3]} 7... e5 {[%clk 0:02:57.5]} 8. e4 {[%clk
0:02:59.9]} 8... c6 {[%clk 0:02:57.5]} 9. h3 {[%clk 0:02:57.3]} 9... Re8 {[%clk
0:02:57.7]} 10. d5 {[%clk 0:02:54.3]} 10... c5 {[%clk 0:02:55.4]} 11. Be3 {[%clk
0:02:50.7]} 11... a6 {[%clk 0:02:54.5]} 12. a4 {[%clk 0:02:48.8]} 12... b6
{[%clk 0:02:54.9]} 13. Ne1 {[%clk 0:02:48.5]} 13... Rb8 {[%clk 0:02:53.9]} 14.
Nd3 {[%clk 0:02:48.4]} 14... Nf8 {[%clk 0:02:40.7]} 15. f4 {[%clk 0:02:41.9]}
15... exf4 {[%clk 0:02:39.8]} 16. gxf4 {[%clk 0:02:40.7]} 16... Nxe4 {[%clk
0:02:16.9]} 17. Nxe4 {[%clk 0:02:19.8]} 17... f5 {[%clk 0:02:15]} 18. Nxd6
{[%clk 0:02:19.3]} 18... Rxe3 {[%clk 0:02:02.5]} 19. Nxc8 {[%clk 0:02:18.6]}
19... Rxc8 {[%clk 0:02:00.2]} 20. Qd2 {[%clk 0:02:17.7]} 20... Bd4 {[%clk
0:01:59.2]} 21. Kh2 {[%clk 0:02:15.5]} 21... Qh4 {[%clk 0:01:52]} 22. Rae1
{[%clk 0:02:13.1]} 22... Qg3+ {[%clk 0:01:51]} 23. Kh1 {[%clk 0:02:12.4]} 23...
Rxd3 {[%clk 0:01:48.8]} 0-1

[Event "*** Titled Tuesday Blitz"]
[Site "Chess.com"]
[Date "2020.11.10"]
[Round "7"]
[White "Kazmin_Dmitrij"]
[Black "BanjoKazooieN64"]
[Result "0-1"]
[WhiteElo "2273"]
[BlackElo "2398"]
[TimeControl "180+1"]
[EndTime "11:18:41 PST"]
[Termination "BanjoKazooieN64 won by resignation"]

1. e4 {[%clk 0:03:00.9]} 1... e5 {[%clk 0:02:59.8]} 2. Nf3 {[%clk 0:02:59.8]}
2... Nc6 {[%clk 0:03:00.2]} 3. Bb5 {[%clk 0:02:58.8]} 3... f5 {[%clk 0:03:00.5]}
4. Nc3 {[%clk 0:02:42.7]} 4... Nf6 {[%clk 0:02:59.2]} 5. exf5 {[%clk 0:02:32.2]}
5... Bc5 {[%clk 0:02:56.5]} 6. O-O {[%clk 0:02:31.9]} 6... O-O {[%clk
0:02:56.2]} 7. Nxe5 {[%clk 0:02:20.9]} 7... Nxe5 {[%clk 0:02:52.8]} 8. d4 {[%clk
0:02:17.6]} 8... Bxd4 {[%clk 0:02:52.3]} 9. Qxd4 {[%clk 0:02:16.9]} 9... d6
{[%clk 0:02:52.7]} 10. f4 {[%clk 0:02:02.5]} 10... Nc6 {[%clk 0:02:47.2]} 11.
Bxc6 {[%clk 0:01:57.9]} 11... bxc6 {[%clk 0:02:47.4]} 12. Qc4+ {[%clk
0:01:56.2]} 12... Kh8 {[%clk 0:02:47.3]} 13. Qxc6 {[%clk 0:01:56.2]} 13... Bxf5
{[%clk 0:02:47.3]} 14. Nd5 {[%clk 0:01:37.8]} 14... Bd7 {[%clk 0:02:17.2]} 15.
Qc4 {[%clk 0:01:22.1]} 15... Be6 {[%clk 0:02:16.4]} 16. Rd1 {[%clk 0:01:18.7]}
16... Nxd5 {[%clk 0:02:06.8]} 17. Rxd5 {[%clk 0:01:17.9]} 17... Rf5 {[%clk
0:01:58.9]} 0-1